[Event "Betsys MČR v online bleskovém šachu 2021"]
[Site "Chess.com"]
[Date "2021.04.17"]
[Round "2"]
[White "LightningAttack_2000"]
[Black "fadamos"]
[Result "0-1"]
[WhiteElo "1900"]
[BlackElo "2254"]
[TimeControl "180+1"]
[EndTime "9:17:49 PDT"]
[Termination "Uživatel fadamos zvítězil matem"]

1. e4 {[%clk 0:03:00.9]} 1... d6 {[%clk 0:02:57.5]} 2. d4 {[%clk 0:03:00.1]}
2... Nf6 {[%clk 0:02:50.8]} 3. Nc3 {[%clk 0:02:59.5]} 3... g6 {[%clk 0:02:50.6]}
4. Bf4 {[%clk 0:02:58.9]} 4... Bg7 {[%clk 0:02:50.3]} 5. Qd2 {[%clk 0:02:58.4]}
5... h6 {[%clk 0:02:50.7]} 6. h4 {[%clk 0:02:56.9]} 6... c6 {[%clk 0:02:39.8]}
7. O-O-O {[%clk 0:02:56.1]} 7... b5 {[%clk 0:02:37.2]} 8. f3 {[%clk 0:02:46.7]}
8... Bb7 {[%clk 0:02:25.3]} 9. Kb1 {[%clk 0:02:43.1]} 9... Nfd7 {[%clk
0:01:57.4]} 10. Nce2 {[%clk 0:02:25.1]} 10... Nb6 {[%clk 0:01:56.8]} 11. Ng3
{[%clk 0:02:17.5]} 11... N8d7 {[%clk 0:01:52]} 12. h5 {[%clk 0:02:12]} 12... g5
{[%clk 0:01:39.8]} 13. Be3 {[%clk 0:02:11.2]} 13... e6 {[%clk 0:01:27.9]} 14. f4
{[%clk 0:01:56.8]} 14... gxf4 {[%clk 0:01:21.7]} 15. Bxf4 {[%clk 0:01:56.2]}
15... Qe7 {[%clk 0:01:22.4]} 16. Nf3 {[%clk 0:01:46.3]} 16... O-O-O {[%clk
0:01:19.3]} 17. Rc1 {[%clk 0:01:39.7]} 17... Kb8 {[%clk 0:01:16.3]} 18. Be2
{[%clk 0:01:32.5]} 18... Ka8 {[%clk 0:01:16]} 19. Rhd1 {[%clk 0:01:20]} 19...
Nc4 {[%clk 0:00:58.5]} 20. Bxc4 {[%clk 0:01:17.7]} 20... bxc4 {[%clk 0:00:59.4]}
21. c3 {[%clk 0:01:04.3]} 21... Nb6 {[%clk 0:00:48.2]} 22. Qc2 {[%clk 0:00:56]}
22... e5 {[%clk 0:00:37.2]} 23. Be3 {[%clk 0:00:51.7]} 23... Rhe8 {[%clk
0:00:35.1]} 24. dxe5 {[%clk 0:00:49.2]} 24... dxe5 {[%clk 0:00:35.3]} 25. Bxb6
{[%clk 0:00:45.4]} 25... axb6 {[%clk 0:00:35.6]} 26. Qa4+ {[%clk 0:00:45.1]}
26... Kb8 {[%clk 0:00:36]} 27. Qxc4 {[%clk 0:00:44.5]} 27... Bf6 {[%clk
0:00:24.2]} 28. Nf5 {[%clk 0:00:41.9]} 28... Qf8 {[%clk 0:00:20.6]} 29. Qe2
{[%clk 0:00:35.6]} 29... Ka7 {[%clk 0:00:20.1]} 30. Rxd8 {[%clk 0:00:33.5]}
30... Rxd8 {[%clk 0:00:20.3]} 31. Rd1 {[%clk 0:00:33.5]} 31... Ba6 {[%clk
0:00:20.9]} 32. Qe1 {[%clk 0:00:30.7]} 32... Bd3+ {[%clk 0:00:20.5]} 33. Ka1
{[%clk 0:00:28.9]} 33... Qc5 {[%clk 0:00:14.1]} 34. Qd2 {[%clk 0:00:20]} 34...
Bxe4 {[%clk 0:00:11.3]} 35. Qxd8 {[%clk 0:00:12]} 35... Bxd8 {[%clk 0:00:12.2]}
36. Rxd8 {[%clk 0:00:11.9]} 36... Bxf5 {[%clk 0:00:12.6]} 37. Rd1 {[%clk
0:00:09.6]} 37... Bc2 {[%clk 0:00:12.3]} 38. Rc1 {[%clk 0:00:09.4]} 38... Qf2
{[%clk 0:00:12.9]} 39. Nxe5 {[%clk 0:00:08.7]} 39... Qxg2 {[%clk 0:00:12.3]} 40.
Nxf7 {[%clk 0:00:07.3]} 40... Bh7 {[%clk 0:00:11.2]} 41. Nxh6 {[%clk 0:00:06.9]}
41... Qg5 {[%clk 0:00:11.8]} 42. Nf7 {[%clk 0:00:06.4]} 42... Qxc1# {[%clk
0:00:11.8]} 0-1

[Event "Betsys MČR v online bleskovém šachu 2021"]
[Site "Chess.com"]
[Date "2021.04.17"]
[Round "2"]
[White "sipos88"]
[Black "Bohous13"]
[Result "0-1"]
[WhiteElo "1868"]
[BlackElo "2201"]
[TimeControl "180+1"]
[EndTime "9:17:49 PDT"]
[Termination "Uživatel Bohous13 zvítězil po vzdání soupeře"]

1. e4 {[%clk 0:02:59.7]} 1... e6 {[%clk 0:02:59.9]} 2. g3 {[%clk 0:02:53.2]}
2... d5 {[%clk 0:02:59.8]} 3. exd5 {[%clk 0:02:53.2]} 3... exd5 {[%clk
0:02:59.3]} 4. Bg2 {[%clk 0:02:53.7]} 4... Nf6 {[%clk 0:02:59.5]} 5. d4 {[%clk
0:02:52.7]} 5... Bd6 {[%clk 0:02:59.2]} 6. f4 {[%clk 0:02:51.9]} 6... O-O {[%clk
0:02:55.9]} 7. Nf3 {[%clk 0:02:51]} 7... Re8+ {[%clk 0:02:54.8]} 8. Ne5 {[%clk
0:02:50.8]} 8... c5 {[%clk 0:02:41.9]} 9. c3 {[%clk 0:02:45]} 9... Bg4 {[%clk
0:02:25.2]} 10. Bf3 {[%clk 0:02:25.4]} 10... Bxf3 {[%clk 0:02:19.2]} 11. Qxf3
{[%clk 0:02:25.5]} 11... cxd4 {[%clk 0:02:19.9]} 12. cxd4 {[%clk 0:02:24.1]}
12... Nc6 {[%clk 0:02:20.1]} 13. Be3 {[%clk 0:02:13.7]} 13... Nb4 {[%clk
0:02:12.8]} 14. Na3 {[%clk 0:01:42.1]} 14... Ne4 {[%clk 0:01:57.5]} 15. O-O
{[%clk 0:01:37.7]} 15... f6 {[%clk 0:01:54.8]} 16. Ng4 {[%clk 0:01:33.6]} 16...
Qd7 {[%clk 0:01:44.2]} 17. Rac1 {[%clk 0:01:22.7]} 17... Nxa2 {[%clk 0:01:36.4]}
18. Rce1 {[%clk 0:01:06.9]} 18... Nb4 {[%clk 0:01:33.2]} 19. Nf2 {[%clk
0:01:04.9]} 19... Nxf2 {[%clk 0:01:31]} 20. Bxf2 {[%clk 0:01:01.1]} 20... Bf8
{[%clk 0:01:24.3]} 21. Re3 {[%clk 0:00:55.8]} 21... Rxe3 {[%clk 0:01:22.8]} 22.
Qxe3 {[%clk 0:00:56]} 22... Re8 {[%clk 0:01:21.4]} 23. Qb3 {[%clk 0:00:55.9]}
23... Kh8 {[%clk 0:01:15.1]} 24. Nc2 {[%clk 0:00:50.6]} 24... Nxc2 {[%clk
0:01:05.9]} 25. Qxc2 {[%clk 0:00:51.5]} 25... Qc6 {[%clk 0:01:01]} 26. Qxc6
{[%clk 0:00:47.1]} 26... bxc6 {[%clk 0:01:01.1]} 27. Rc1 {[%clk 0:00:47.7]}
27... Rc8 {[%clk 0:00:56.2]} 28. Kg2 {[%clk 0:00:45.4]} 28... Kg8 {[%clk
0:00:56]} 29. f5 {[%clk 0:00:45]} 29... Kf7 {[%clk 0:00:55.4]} 30. Kf3 {[%clk
0:00:42.8]} 30... Ke7 {[%clk 0:00:54.7]} 31. Ra1 {[%clk 0:00:42.3]} 31... Rc7
{[%clk 0:00:53.6]} 32. Ra5 {[%clk 0:00:39.3]} 32... Kd7 {[%clk 0:00:51.2]} 33.
g4 {[%clk 0:00:37.5]} 33... Bd6 {[%clk 0:00:49.5]} 34. h4 {[%clk 0:00:36.4]}
34... Rb7 {[%clk 0:00:49]} 35. g5 {[%clk 0:00:33.8]} 35... Bb8 {[%clk
0:00:45.1]} 36. g6 {[%clk 0:00:24.2]} 36... hxg6 {[%clk 0:00:44.1]} 37. fxg6
{[%clk 0:00:24.7]} 37... Rb3+ {[%clk 0:00:40.7]} 38. Kg4 {[%clk 0:00:24.2]}
38... Rxb2 {[%clk 0:00:40.6]} 39. Bg3 {[%clk 0:00:20.1]} 39... Rg2 {[%clk
0:00:36.5]} 40. Ra3 {[%clk 0:00:16.7]} 40... a5 {[%clk 0:00:31.3]} 41. h5 {[%clk
0:00:16.1]} 41... Ke7 {[%clk 0:00:23.7]} 42. Rb3 {[%clk 0:00:14.7]} 42... Rxg3+
{[%clk 0:00:21.6]} 43. Rxg3 {[%clk 0:00:14.3]} 43... Bxg3 {[%clk 0:00:22.1]} 44.
Kxg3 {[%clk 0:00:12.3]} 44... a4 {[%clk 0:00:19.6]} 45. h6 {[%clk 0:00:12.1]}
45... gxh6 {[%clk 0:00:19.3]} 0-1

[Event "Betsys MČR v online bleskovém šachu 2021"]
[Site "Chess.com"]
[Date "2021.04.17"]
[Round "2"]
[White "EXTREME_STRATEGY007"]
[Black "AdaTra"]
[Result "1-0"]
[WhiteElo "1135"]
[BlackElo "1641"]
[TimeControl "180+1"]
[EndTime "9:17:49 PDT"]
[Termination "Uživatel EXTREME_STRATEGY007 zvítězil po vzdání soupeře"]

1. e4 {[%clk 0:03:00.9]} 1... c6 {[%clk 0:02:59.7]} 2. d4 {[%clk 0:02:57.8]}
2... d5 {[%clk 0:02:59.7]} 3. Nc3 {[%clk 0:02:57.1]} 3... dxe4 {[%clk
0:02:58.3]} 4. Nxe4 {[%clk 0:02:56.6]} 4... Nd7 {[%clk 0:02:58.4]} 5. Qe2 {[%clk
0:02:46.6]} 5... Ndf6 {[%clk 0:02:54.2]} 6. Nf3 {[%clk 0:02:41.3]} 6... Nxe4
{[%clk 0:02:52.9]} 7. Qxe4 {[%clk 0:02:40.1]} 7... Nf6 {[%clk 0:02:52.6]} 8. Qe3
{[%clk 0:02:38.6]} 8... Nd5 {[%clk 0:02:49.7]} 9. Qd3 {[%clk 0:02:30.3]} 9...
Bg4 {[%clk 0:02:34.1]} 10. h3 {[%clk 0:02:24.1]} 10... Bh5 {[%clk 0:02:32.8]}
11. Be2 {[%clk 0:02:23.6]} 11... e6 {[%clk 0:02:31.4]} 12. Be3 {[%clk
0:02:22.6]} 12... Be7 {[%clk 0:02:19.6]} 13. O-O {[%clk 0:02:20.3]} 13... O-O
{[%clk 0:02:14.5]} 14. c4 {[%clk 0:02:19]} 14... Nxe3 {[%clk 0:02:11.7]} 15.
Qxe3 {[%clk 0:02:14.9]} 15... Qc7 {[%clk 0:02:05.6]} 16. Ne5 {[%clk 0:02:10]}
16... Bxe2 {[%clk 0:02:00.4]} 17. Qxe2 {[%clk 0:02:06.7]} 17... Bf6 {[%clk
0:01:56.7]} 18. f4 {[%clk 0:02:03.2]} 18... c5 {[%clk 0:01:52.7]} 19. d5 {[%clk
0:01:47.4]} 19... exd5 {[%clk 0:01:29.7]} 20. cxd5 {[%clk 0:01:43.9]} 20... Rfe8
{[%clk 0:01:27.8]} 21. Rae1 {[%clk 0:01:12.2]} 21... Rad8 {[%clk 0:01:27.1]} 22.
Qc4 {[%clk 0:01:00.7]} 22... Bxe5 {[%clk 0:01:18.4]} 23. fxe5 {[%clk 0:00:55.5]}
23... Rxe5 {[%clk 0:01:15.8]} 24. d6 {[%clk 0:00:53.8]} 24... Qxd6 {[%clk
0:00:34.7]} 25. Qxf7+ {[%clk 0:00:46.5]} 25... Kh8 {[%clk 0:00:32.4]} 26. Rxe5
{[%clk 0:00:45.1]} 26... Qd4+ {[%clk 0:00:27.4]} 27. Kh1 {[%clk 0:00:41.2]}
27... h6 {[%clk 0:00:19.1]} 28. Re8+ {[%clk 0:00:29.2]} 28... Rxe8 {[%clk
0:00:18.3]} 29. Qxe8+ {[%clk 0:00:29]} 29... Kh7 {[%clk 0:00:18.6]} 30. Qe2
{[%clk 0:00:27.4]} 30... b5 {[%clk 0:00:13]} 31. Qc2+ {[%clk 0:00:26.4]} 31...
Kg8 {[%clk 0:00:11.6]} 32. Qb3+ {[%clk 0:00:19.6]} 32... c4 {[%clk 0:00:10.4]}
33. Qd1 {[%clk 0:00:19.1]} 33... Qc5 {[%clk 0:00:06.2]} 34. Qd8+ {[%clk
0:00:16.2]} 34... Kh7 {[%clk 0:00:05.9]} 35. Rf8 {[%clk 0:00:13.8]} 35... Qe5
{[%clk 0:00:04.2]} 36. Rh8+ {[%clk 0:00:13.2]} 36... Kg6 {[%clk 0:00:04]} 37.
Qe8+ {[%clk 0:00:11]} 37... Qxe8 {[%clk 0:00:01.8]} 38. Rxe8 {[%clk 0:00:11.4]}
1-0

[Event "Betsys MČR v online bleskovém šachu 2021"]
[Site "Chess.com"]
[Date "2021.04.17"]
[Round "2"]
[White "Tretrik"]
[Black "phil3"]
[Result "1-0"]
[WhiteElo "1989"]
[BlackElo "2157"]
[TimeControl "180+1"]
[EndTime "9:17:50 PDT"]
[Termination "Uživatel Tretrik zvítězil matem"]

1. e4 {[%clk 0:03:00.9]} 1... c6 {[%clk 0:03:00.3]} 2. Nf3 {[%clk 0:03:00.2]}
2... d5 {[%clk 0:03:00.6]} 3. d3 {[%clk 0:03:00.6]} 3... Qc7 {[%clk 0:02:59.7]}
4. Nc3 {[%clk 0:02:58.5]} 4... Bg4 {[%clk 0:02:59.3]} 5. h3 {[%clk 0:02:57.9]}
5... Bxf3 {[%clk 0:02:58.7]} 6. Qxf3 {[%clk 0:02:57.6]} 6... e6 {[%clk
0:02:58.7]} 7. g4 {[%clk 0:02:50.1]} 7... Nf6 {[%clk 0:02:49.6]} 8. Bg2 {[%clk
0:02:47.5]} 8... Nbd7 {[%clk 0:02:47.5]} 9. Qe2 {[%clk 0:02:44.3]} 9... Be7
{[%clk 0:02:41.5]} 10. f4 {[%clk 0:02:13.2]} 10... Nc5 {[%clk 0:02:36.1]} 11. e5
{[%clk 0:02:06.2]} 11... Nfd7 {[%clk 0:02:35.7]} 12. d4 {[%clk 0:02:05.9]} 12...
Na6 {[%clk 0:02:35.2]} 13. O-O {[%clk 0:01:43.9]} 13... c5 {[%clk 0:02:34]} 14.
Nb5 {[%clk 0:01:43.3]} 14... Qb6 {[%clk 0:02:33.6]} 15. c3 {[%clk 0:01:41.3]}
15... Nc7 {[%clk 0:02:25.3]} 16. Nxc7+ {[%clk 0:01:39.6]} 16... Qxc7 {[%clk
0:02:25.4]} 17. f5 {[%clk 0:01:37.2]} 17... O-O {[%clk 0:01:57.5]} 18. Bf4
{[%clk 0:01:31.1]} 18... Rac8 {[%clk 0:01:48.3]} 19. f6 {[%clk 0:01:29.3]} 19...
gxf6 {[%clk 0:01:48]} 20. exf6 {[%clk 0:01:29.3]} 20... Bd6 {[%clk 0:01:48.4]}
21. Bxd6 {[%clk 0:01:14.5]} 21... Qxd6 {[%clk 0:01:48.2]} 22. Qe3 {[%clk
0:01:14]} 22... Kh8 {[%clk 0:01:44.1]} 23. Rae1 {[%clk 0:01:04.8]} 23... Rg8
{[%clk 0:01:35.5]} 24. Kh1 {[%clk 0:01:03.7]} 24... Rg6 {[%clk 0:01:34]} 25. g5
{[%clk 0:01:03.3]} 25... Rcg8 {[%clk 0:01:30]} 26. h4 {[%clk 0:00:58.5]} 26...
a6 {[%clk 0:00:58.3]} 27. Qf3 {[%clk 0:00:56.3]} 27... cxd4 {[%clk 0:00:51.1]}
28. cxd4 {[%clk 0:00:55.9]} 28... Qb6 {[%clk 0:00:41.8]} 29. Qf2 {[%clk
0:00:45.1]} 29... h6 {[%clk 0:00:38.2]} 30. Bh3 {[%clk 0:00:37.7]} 30... Qa5
{[%clk 0:00:21.2]} 31. b3 {[%clk 0:00:32.6]} 31... Qb6 {[%clk 0:00:20.3]} 32.
Rc1 {[%clk 0:00:28.1]} 32... Qd6 {[%clk 0:00:19.4]} 33. Rg1 {[%clk 0:00:24.7]}
33... Kh7 {[%clk 0:00:17.9]} 34. Bf1 {[%clk 0:00:22.6]} 34... Kh8 {[%clk
0:00:09.8]} 35. Bd3 {[%clk 0:00:20.3]} 35... b6 {[%clk 0:00:06.6]} 36. Bxg6
{[%clk 0:00:17.8]} 36... Rxg6 {[%clk 0:00:06.7]} 37. Rc8+ {[%clk 0:00:16.5]}
37... Kh7 {[%clk 0:00:06.4]} 38. h5 {[%clk 0:00:16]} 38... Rxg5 {[%clk
0:00:05.1]} 39. Qc2+ {[%clk 0:00:16.5]} 39... Rf5 {[%clk 0:00:03.1]} 40. Rg7#
{[%clk 0:00:14.4]} 1-0

[Event "Betsys MČR v online bleskovém šachu 2021"]
[Site "Chess.com"]
[Date "2021.04.17"]
[Round "2"]
[White "VildaSt"]
[Black "ReitteN"]
[Result "1/2-1/2"]
[WhiteElo "1323"]
[BlackElo "1766"]
[TimeControl "180+1"]
[EndTime "9:17:50 PDT"]
[Termination "Remíza opakováním pozice"]

1. e4 {[%clk 0:03:00.5]} 1... c6 {[%clk 0:02:56.6]} 2. d4 {[%clk 0:02:58.1]}
2... d5 {[%clk 0:02:51.8]} 3. exd5 {[%clk 0:02:58.2]} 3... cxd5 {[%clk
0:02:50.4]} 4. Nf3 {[%clk 0:02:58.3]} 4... Nf6 {[%clk 0:02:47.1]} 5. c4 {[%clk
0:02:58.3]} 5... Nc6 {[%clk 0:02:34.3]} 6. Nc3 {[%clk 0:02:50.8]} 6... Bg4
{[%clk 0:02:26.5]} 7. Be3 {[%clk 0:02:48.2]} 7... e6 {[%clk 0:02:03.3]} 8. Be2
{[%clk 0:02:45.1]} 8... a6 {[%clk 0:01:49]} 9. O-O {[%clk 0:02:44.4]} 9... Rc8
{[%clk 0:01:39.2]} 10. Ne5 {[%clk 0:02:34.8]} 10... Bxe2 {[%clk 0:01:38.2]} 11.
Qxe2 {[%clk 0:02:33]} 11... Bd6 {[%clk 0:01:31.2]} 12. cxd5 {[%clk 0:02:29.4]}
12... Nxe5 {[%clk 0:01:11.2]} 13. dxe5 {[%clk 0:02:24.3]} 13... Bxe5 {[%clk
0:01:03.8]} 14. dxe6 {[%clk 0:02:15.8]} 14... fxe6 {[%clk 0:00:59.1]} 15. Bd2
{[%clk 0:01:58]} 15... Qd6 {[%clk 0:00:47.1]} 16. f4 {[%clk 0:01:47.7]} 16...
Bd4+ {[%clk 0:00:44.8]} 17. Be3 {[%clk 0:01:40.5]} 17... O-O {[%clk 0:00:33.8]}
18. Bxd4 {[%clk 0:01:33.7]} 18... Qxd4+ {[%clk 0:00:29]} 19. Kh1 {[%clk
0:01:26]} 19... Rfe8 {[%clk 0:00:22.4]} 20. Rad1 {[%clk 0:01:24.2]} 20... Qb4
{[%clk 0:00:22.3]} 21. a3 {[%clk 0:01:13.4]} 21... Qb6 {[%clk 0:00:14]} 22. Qf2
{[%clk 0:01:10.2]} 22... Qxf2 {[%clk 0:00:13.8]} 23. Rxf2 {[%clk 0:01:09.8]}
23... Red8 {[%clk 0:00:13.2]} 24. Rxd8+ {[%clk 0:01:08]} 24... Rxd8 {[%clk
0:00:14.1]} 25. g3 {[%clk 0:01:08]} 25... Nd5 {[%clk 0:00:10.4]} 26. Nxd5 {[%clk
0:01:06.7]} 26... Rxd5 {[%clk 0:00:11.1]} 27. Kg2 {[%clk 0:01:04.9]} 27... Rb5
{[%clk 0:00:09.2]} 28. Kf3 {[%clk 0:01:04.3]} 28... Kf7 {[%clk 0:00:06.6]} 29.
Kg4 {[%clk 0:01:04.4]} 29... Rb3 {[%clk 0:00:06.6]} 30. Rc2 {[%clk 0:01:02.2]}
30... Kf6 {[%clk 0:00:04.9]} 31. h4 {[%clk 0:01:01.6]} 31... g6 {[%clk 0:00:05]}
32. Re2 {[%clk 0:00:55.3]} 32... h5+ {[%clk 0:00:05.2]} 33. Kh3 {[%clk
0:00:54.8]} 33... a5 {[%clk 0:00:03.6]} 34. Rc2 {[%clk 0:00:53.4]} 34... b6
{[%clk 0:00:02.6]} 35. Re2 {[%clk 0:00:52.6]} 35... a4 {[%clk 0:00:02.9]} 36.
Rc2 {[%clk 0:00:51.8]} 36... b5 {[%clk 0:00:03.4]} 37. Rd2 {[%clk 0:00:51.3]}
37... b4 {[%clk 0:00:02.4]} 38. axb4 {[%clk 0:00:50.5]} 38... Rxb4 {[%clk
0:00:03.3]} 39. Rc2 {[%clk 0:00:49]} 39... Rb3 {[%clk 0:00:03.4]} 40. Rd2 {[%clk
0:00:48.6]} 40... a3 {[%clk 0:00:03]} 41. bxa3 {[%clk 0:00:47.9]} 41... Rxa3
{[%clk 0:00:03.9]} 42. Rd6 {[%clk 0:00:47.4]} 42... Rb3 {[%clk 0:00:02.2]} 43.
Rd8 {[%clk 0:00:47.2]} 43... Ra3 {[%clk 0:00:01.9]} 44. Rf8+ {[%clk 0:00:47.2]}
44... Kg7 {[%clk 0:00:02.4]} 45. Rb8 {[%clk 0:00:46.7]} 45... Kf6 {[%clk
0:00:02.8]} 46. Rb6 {[%clk 0:00:46.2]} 46... Rd3 {[%clk 0:00:01.9]} 47. Rb5
{[%clk 0:00:45.9]} 47... Rd4 {[%clk 0:00:01.3]} 48. Rg5 {[%clk 0:00:44.9]} 48...
Rd3 {[%clk 0:00:01.5]} 49. Rc5 {[%clk 0:00:44.1]} 49... Ra3 {[%clk 0:00:02.2]}
50. Rb5 {[%clk 0:00:43.6]} 50... Rc3 {[%clk 0:00:02.5]} 51. Rb8 {[%clk
0:00:43.5]} 51... Ra3 {[%clk 0:00:02.9]} 52. Rf8+ {[%clk 0:00:43.1]} 52... Kg7
{[%clk 0:00:03.5]} 53. Re8 {[%clk 0:00:42.3]} 53... Kf7 {[%clk 0:00:04.1]} 54.
Rb8 {[%clk 0:00:41.9]} 54... Kf6 {[%clk 0:00:04.5]} 1/2-1/2

[Event "Betsys MČR v online bleskovém šachu 2021"]
[Site "Chess.com"]
[Date "2021.04.17"]
[Round "2"]
[White "Dan1612"]
[Black "AJedlicka"]
[Result "1-0"]
[WhiteElo "1944"]
[BlackElo "2196"]
[TimeControl "180+1"]
[EndTime "9:17:51 PDT"]
[Termination "Uživatel Dan1612 zvítězil na čas"]

1. e4 {[%clk 0:03:00.9]} 1... c5 {[%clk 0:02:58.8]} 2. Nf3 {[%clk 0:03:00.7]}
2... d6 {[%clk 0:02:58.1]} 3. d4 {[%clk 0:03:00.5]} 3... cxd4 {[%clk 0:02:57.8]}
4. Nxd4 {[%clk 0:03:00.3]} 4... Nf6 {[%clk 0:02:57.2]} 5. Nc3 {[%clk 0:03:00.6]}
5... a6 {[%clk 0:02:57]} 6. Bg5 {[%clk 0:03:01.1]} 6... Nbd7 {[%clk 0:02:56.3]}
7. f4 {[%clk 0:02:59.4]} 7... Qc7 {[%clk 0:02:55.9]} 8. Qd2 {[%clk 0:02:58.6]}
8... e6 {[%clk 0:02:53.8]} 9. O-O-O {[%clk 0:02:58]} 9... b5 {[%clk 0:02:53]}
10. Bd3 {[%clk 0:02:40.4]} 10... Bb7 {[%clk 0:02:52.1]} 11. Rhe1 {[%clk
0:02:36.4]} 11... Be7 {[%clk 0:02:51.3]} 12. h3 {[%clk 0:02:34.4]} 12... O-O-O
{[%clk 0:02:42]} 13. a3 {[%clk 0:02:19.7]} 13... h6 {[%clk 0:02:39.4]} 14. Bh4
{[%clk 0:02:18.9]} 14... Nxe4 {[%clk 0:02:28.1]} 15. Bxe4 {[%clk 0:02:00.9]}
15... Bxh4 {[%clk 0:02:26.5]} 16. Ndxb5 {[%clk 0:01:27.5]} 16... axb5 {[%clk
0:02:23.1]} 17. Nxb5 {[%clk 0:01:21.8]} 17... Qb6 {[%clk 0:02:18.5]} 18. Nxd6+
{[%clk 0:01:18.8]} 18... Kb8 {[%clk 0:02:15.6]} 19. Re3 {[%clk 0:01:03.2]} 19...
Nc5 {[%clk 0:02:05.1]} 20. Bxb7 {[%clk 0:00:48.6]} 20... Rxd6 {[%clk 0:02:01.9]}
21. Qxd6+ {[%clk 0:00:46.5]} 21... Qxd6 {[%clk 0:02:00.2]} 22. Rxd6 {[%clk
0:00:47.2]} 22... Kxb7 {[%clk 0:01:58.7]} 23. b4 {[%clk 0:00:46.5]} 23... Na4
{[%clk 0:01:53.7]} 24. Rd7+ {[%clk 0:00:44.4]} 24... Kc6 {[%clk 0:01:51.6]} 25.
Rxf7 {[%clk 0:00:44.3]} 25... Bf6 {[%clk 0:01:48.6]} 26. Rxe6+ {[%clk 0:00:43]}
26... Kd5 {[%clk 0:01:48.4]} 27. Ra6 {[%clk 0:00:40.2]} 27... Nc3 {[%clk
0:01:47.7]} 28. Rd7+ {[%clk 0:00:40]} 28... Ke4 {[%clk 0:01:46.9]} 29. Kd2
{[%clk 0:00:25.9]} 29... Rc8 {[%clk 0:01:41.8]} 30. Rd3 {[%clk 0:00:24.3]} 30...
Kxf4 {[%clk 0:01:36.1]} 31. Rxf6+ {[%clk 0:00:23.8]} 31... gxf6 {[%clk
0:01:31.6]} 32. Rxc3 {[%clk 0:00:23.8]} 32... Rd8+ {[%clk 0:01:29.6]} 33. Rd3
{[%clk 0:00:24.4]} 33... Ra8 {[%clk 0:01:28.2]} 34. b5 {[%clk 0:00:24.2]} 34...
Ke4 {[%clk 0:01:26.6]} 35. b6 {[%clk 0:00:23.3]} 35... Rb8 {[%clk 0:01:24.3]}
36. Rb3 {[%clk 0:00:23.6]} 36... Kd4 {[%clk 0:01:24]} 37. a4 {[%clk 0:00:24]}
37... Kc5 {[%clk 0:01:23.1]} 38. a5 {[%clk 0:00:24.5]} 38... Kc6 {[%clk
0:01:15.6]} 39. a6 {[%clk 0:00:20.4]} 39... Rd8+ {[%clk 0:01:13.6]} 40. Kc1
{[%clk 0:00:19.3]} 40... f5 {[%clk 0:00:53.3]} 41. b7 {[%clk 0:00:18.6]} 41...
Kc7 {[%clk 0:00:52.1]} 42. a7 {[%clk 0:00:18.8]} 1-0

[Event "Betsys MČR v online bleskovém šachu 2021"]
[Site "Chess.com"]
[Date "2021.04.17"]
[Round "2"]
[White "DONSANMIGUEL"]
[Black "Tlaskin"]
[Result "1-0"]
[WhiteElo "1801"]
[BlackElo "1366"]
[TimeControl "180+1"]
[EndTime "9:17:51 PDT"]
[Termination "Uživatel DONSANMIGUEL zvítězil matem"]

1. a4 {[%clk 0:02:11.7]} 1... Nf6 {[%clk 0:02:52.8]} 2. Nf3 {[%clk 0:02:09.9]}
2... c5 {[%clk 0:02:51.6]} 3. d3 {[%clk 0:02:10.8]} 3... e6 {[%clk 0:02:50.3]}
4. Nbd2 {[%clk 0:02:10]} 4... Nc6 {[%clk 0:02:49.3]} 5. g3 {[%clk 0:02:08.4]}
5... Be7 {[%clk 0:02:46.7]} 6. Bg2 {[%clk 0:02:08.5]} 6... O-O {[%clk
0:02:46.6]} 7. O-O {[%clk 0:02:04.7]} 7... b6 {[%clk 0:02:44.9]} 8. e4 {[%clk
0:02:01.6]} 8... Bb7 {[%clk 0:02:42.9]} 9. c3 {[%clk 0:01:56.2]} 9... Rb8 {[%clk
0:02:42.1]} 10. Nc4 {[%clk 0:01:53.6]} 10... d5 {[%clk 0:02:27.4]} 11. e5 {[%clk
0:01:41.4]} 11... dxc4 {[%clk 0:02:18.6]} 12. exf6 {[%clk 0:01:40.7]} 12... Bxf6
{[%clk 0:02:12.4]} 13. dxc4 {[%clk 0:01:31.9]} 13... Qxd1 {[%clk 0:02:07.9]} 14.
Rxd1 {[%clk 0:01:32.3]} 14... Rfd8 {[%clk 0:02:05.5]} 15. Bf4 {[%clk 0:01:30.8]}
15... e5 {[%clk 0:01:54]} 16. Be3 {[%clk 0:01:26.9]} 16... Ne7 {[%clk
0:01:36.5]} 17. g4 {[%clk 0:00:57.8]} 17... h6 {[%clk 0:01:20.1]} 18. h4 {[%clk
0:00:56.7]} 18... Ng6 {[%clk 0:01:00.4]} 19. g5 {[%clk 0:00:52.4]} 19... hxg5
{[%clk 0:00:55.9]} 20. hxg5 {[%clk 0:00:48.7]} 20... Be7 {[%clk 0:00:51.3]} 21.
Nh2 {[%clk 0:00:37.9]} 21... Bxg2 {[%clk 0:00:47.5]} 22. Kxg2 {[%clk 0:00:38.8]}
22... Nf4+ {[%clk 0:00:46.5]} 23. Bxf4 {[%clk 0:00:37.8]} 23... exf4 {[%clk
0:00:46.2]} 24. Nf3 {[%clk 0:00:37.2]} 24... Rxd1 {[%clk 0:00:43.3]} 25. Rxd1
{[%clk 0:00:36.3]} 25... Rd8 {[%clk 0:00:43.1]} 26. Re1 {[%clk 0:00:36.5]} 26...
Bf8 {[%clk 0:00:38]} 27. Re2 {[%clk 0:00:34.8]} 27... g6 {[%clk 0:00:36]} 28.
Ne5 {[%clk 0:00:32]} 28... Bd6 {[%clk 0:00:30.1]} 29. Ng4 {[%clk 0:00:29]} 29...
Rc8 {[%clk 0:00:27]} 30. Nf6+ {[%clk 0:00:28.4]} 30... Kg7 {[%clk 0:00:24.5]}
31. Re8 {[%clk 0:00:26.8]} 31... Rxe8 {[%clk 0:00:23.8]} 32. Nxe8+ {[%clk
0:00:26.4]} 32... Kf8 {[%clk 0:00:21.8]} 33. Nxd6 {[%clk 0:00:26.3]} 33... Ke7
{[%clk 0:00:21.9]} 34. Ne4 {[%clk 0:00:26]} 34... Ke6 {[%clk 0:00:21.5]} 35. Kf3
{[%clk 0:00:25.9]} 35... f5 {[%clk 0:00:20.5]} 36. gxf6 {[%clk 0:00:24.9]} 36...
Kf7 {[%clk 0:00:19.5]} 37. Kxf4 {[%clk 0:00:24.2]} 37... Ke6 {[%clk 0:00:18.1]}
38. Kg5 {[%clk 0:00:22.4]} 38... Kf7 {[%clk 0:00:17.5]} 39. Nd6+ {[%clk
0:00:19.2]} 39... Kf8 {[%clk 0:00:17.6]} 40. Nb5 {[%clk 0:00:16.4]} 40... Kf7
{[%clk 0:00:17.7]} 41. Nxa7 {[%clk 0:00:16.3]} 41... Kf8 {[%clk 0:00:15.7]} 42.
Nc8 {[%clk 0:00:16.3]} 42... Kf7 {[%clk 0:00:15.2]} 43. Nxb6 {[%clk 0:00:16.2]}
43... Kf8 {[%clk 0:00:15.1]} 44. a5 {[%clk 0:00:15.8]} 44... Kf7 {[%clk
0:00:15]} 45. a6 {[%clk 0:00:16.2]} 45... Kf8 {[%clk 0:00:15.3]} 46. a7 {[%clk
0:00:16.5]} 46... Kf7 {[%clk 0:00:15.4]} 47. a8=Q {[%clk 0:00:16.7]} 47... Ke6
{[%clk 0:00:14.3]} 48. Qd5# {[%clk 0:00:16]} 1-0